fUSD/lending_fUSD_20240213
["ID","MTS","AMOUNT","RATE_DAILY","PERIOD"]
[313929994,1707835834928,-1368.01,0.00027034,2]
[313929995,1707835834937,-170.82,0.00027112,2]
[313929996,1707835834945,-481.38,0.00027227,2]
[313929997,1707835834954,-2347.38530397,0.0002735,3]
[313929998,1707835834963,-715.7898552,0.00027351,3]
[313929999,1707835835017,-220.08189058,0.00027351,3]
[313930000,1707835835037,-1082.76653446,0.00027595,6]
[313930001,1707835835047,-117.46822522,0.00027696,2]
[313930002,1707835835060,-89.57707478,0.00027696,2]
[313930003,1707835835069,-506.95385161,0.00027793,2]
[313930004,1707835835079,-914.86393929,0.00027794,2]
[313930005,1707835835108,-399.2023011,0.00027794,2]
[313930006,1707835835120,-268.8673453,0.00027794,2]
[313930007,1707835835130,-289.65573501,0.00027794,2]
[313930008,1707835835163,-22.42571891,0.00027794,2]
[313930009,1707835835176,-437.14849686,0.00027794,2]
[313930010,1707835835196,-1721.9738624,0.00027794,2]
[313930011,1707835835208,-849.83198458,0.00027794,2]
[313930012,1707835835219,-274.82388226,0.00027794,2]
[313930013,1707835835228,-2083.34929259,0.00027795,2]
[313930014,1707835835240,-849.08324174,0.00027795,2]
[313930015,1707835835252,-250.0,0.00027795,2]
[313930016,1707835835265,-2285.78141462,0.00027795,2]
[313930017,1707835835275,-2624.91858538,0.00027796,2]
[313930025,1707835838127,-405.63423652,0.00027796,2]
[313930026,1707835838139,-20174.1878781,0.00027796,2]
[313930027,1707835838148,-5624.3416,0.00027796,2]
[313930028,1707835838158,-305.3231,0.00027796,2]
[313930029,1707835838167,-315.84,0.00027958,10]
[313930030,1707835838178,-379.01,0.00027968,10]
[313930031,1707835838187,-263.2,0.00027981,10]
[313930032,1707835838197,-164.15,0.00027991,2]
[313930033,1707835838206,-152.28,0.00028276,2]
[313930034,1707835838215,-1908.41654743,0.00028567,2]
[313930035,1707835838224,-19530.20750786,0.00028567,2]
[313930036,1707835838236,-600.0,0.00028567,2]
[313930037,1707835838248,-7765.97792431,0.00028567,2]
[313930038,1707835838257,-72661.7056,0.00028667,2]
[313930039,1707835838267,-8823.4437,0.00028667,2]
[313930040,1707835838276,-2987.67257106,0.00028739,4]
[313930041,1707835838286,-1908.41654741,0.00028747,2]
[313930042,1707835838295,-507.97092179,0.00028767,2]
[313930043,1707835838304,-517.03320835,0.00028767,2]
[313930044,1707835838316,-558.10435834,0.00028767,2]
[313930045,1707835838326,-574.08497498,0.00028767,2]
[313930046,1707835838335,-614.80715465,0.00028767,2]
[313930047,1707835838344,-444.8112171,0.00028767,2]
[313930048,1707835838354,-324.88122371,0.00028767,2]
[313930049,1707835838363,-634.85137791,0.00028767,2]
[313930050,1707835838372,-506.81650344,0.00028767,2]
[313930051,1707835838381,-526.71192705,0.00028767,2]
[313930052,1707835838391,-502.03975329,0.00028767,2]
[313930053,1707835838401,-528.61098883,0.00028767,2]
[313930054,1707835838411,-799.99111222,0.00028767,2]
[313930055,1707835838422,-500.0,0.00028767,2]
[313930056,1707835838431,-500.0,0.00028767,2]
[313930057,1707835838441,-508.2226955,0.00028767,2]
[313930058,1707835838450,-208.06793408,0.00028767,2]
[313930059,1707835838459,-500.0,0.00028767,2]
[313930060,1707835838469,-500.0,0.00028767,2]
[313930061,1707835838479,-500.0,0.00028767,2]
[313930062,1707835838489,-151.82752414,0.00028767,2]
[313930063,1707835838499,-500.75280323,0.00028767,2]
[313930066,1707835838724,-328.39686006,0.00028767,2]
[313930067,1707835838735,-500.0,0.00028767,2]
[313930068,1707835838745,-500.0,0.00028767,2]
[313930069,1707835838756,-500.0,0.00028767,2]
[313930070,1707835838768,-195.9195372,0.00028767,2]
[313930071,1707835838781,-500.0,0.00028767,2]
[313930072,1707835838792,-619.97305862,0.00028767,2]
[313930073,1707835838802,-167.20233101,0.00028767,2]
[313930074,1707835838812,-500.0,0.00028767,2]
[313930075,1707835838822,-500.0,0.00028767,2]
[313930076,1707835838831,-500.0,0.00028767,2]
[313930077,1707835838842,-500.0,0.00028767,2]
[313930078,1707835838852,-529.30465197,0.00028767,2]
[313930079,1707835838862,-500.0,0.00028767,2]
[313930080,1707835838872,-500.0,0.00028767,2]
[313930081,1707835838881,-500.0,0.00028767,2]
[313930082,1707835838890,-500.0,0.00028767,2]
[313930083,1707835838899,-323.15831398,0.00028767,2]
[313930084,1707835838910,-500.0,0.00028767,2]
[313930085,1707835838919,-500.0,0.00028767,2]
[313930086,1707835838931,-500.0,0.00028767,2]
[313930087,1707835838941,-500.0,0.00028767,2]
[313930088,1707835838951,-421.08280545,0.00028767,2]
[313930089,1707835838960,-500.0,0.00028767,2]
[313930090,1707835838970,-200.14776441,0.00028767,2]
[313930091,1707835838979,-500.0,0.00028767,2]
[313930092,1707835838988,-393.17895845,0.00028767,2]
[313930093,1707835838998,-500.0,0.00028767,2]
[313930094,1707835839007,-500.0,0.00028767,2]
[313930095,1707835839016,-500.72180672,0.00028767,2]
[313930096,1707835839026,-500.0,0.00028767,2]
[313930097,1707835839035,-500.0,0.00028767,2]
[313930098,1707835839045,-500.0,0.00028767,2]
[313930099,1707835839054,-500.0,0.00028767,2]
[313930100,1707835839064,-500.0,0.00028767,2]
[313930101,1707835839074,-500.0,0.00028767,2]
[313930102,1707835839083,-500.0,0.00028767,2]
[313930103,1707835839094,-500.0,0.00028767,2]
[313930104,1707835839104,-500.0,0.00028767,2]
[313930105,1707835839113,-500.0,0.00028767,2]
[313930106,1707835839123,-500.0,0.00028767,2]
[313930107,1707835839132,-500.0,0.00028767,2]
[313930108,1707835839142,-500.0,0.00028767,2]
[313930109,1707835839152,-500.0,0.00028767,2]
[313930110,1707835839162,-500.0,0.00028767,2]
[313930111,1707835839173,-509.1798294,0.00028767,2]
[313930112,1707835839182,-500.0,0.00028767,2]
[313930113,1707835839191,-500.0,0.00028767,2]
[313930114,1707835839200,-378.3079806,0.00028767,2]
[313930115,1707835839209,-536.30892035,0.00028767,2]
[313930116,1707835839219,-289.65250375,0.00028767,2]
[313930117,1707835839228,-500.0,0.00028767,2]
[313930118,1707835839238,-500.0,0.00028767,2]
[313930119,1707835839247,-254.88618473,0.00028767,2]
[313930120,1707835839256,-500.0,0.00028767,2]
[313930121,1707835839267,-500.0,0.00028767,2]
[313930122,1707835839276,-500.0,0.00028767,2]
[313930123,1707835839286,-523.95,0.00028767,2]
[313930124,1707835839295,-500.0,0.00028767,2]
[313930125,1707835839305,-500.0,0.00028767,2]
[313930126,1707835839315,-500.0,0.00028767,2]
[313930127,1707835839335,-500.0,0.00028767,2]
[313930128,1707835839349,-500.0,0.00028767,2]
[313930129,1707835839359,-500.0,0.00028767,2]
[313930130,1707835839369,-500.0,0.00028767,2]
[313930131,1707835839380,-669.91,0.00028767,2]
[313930132,1707835839390,-500.0,0.00028767,2]
[313930133,1707835839401,-500.0,0.00028767,2]
[313930134,1707835839412,-500.0,0.00028767,2]
[313930135,1707835839423,-189.42260895,0.00028767,2]
[313930136,1707835839433,-500.0,0.00028767,2]
[313930137,1707835839442,-500.0,0.00028767,2]
[313930138,1707835839452,-500.0,0.00028767,2]
[313930139,1707835839462,-500.0,0.00028767,2]
[313930140,1707835839472,-500.0,0.00028767,2]
[313930141,1707835839482,-500.0,0.00028767,2]
[313930142,1707835839492,-500.0,0.00028767,2]
[313930143,1707835839502,-500.0,0.00028767,2]
[313930144,1707835839515,-500.0,0.00028767,2]
[313930145,1707835839526,-500.0,0.00028767,2]
[313930146,1707835839536,-500.0,0.00028767,2]
[313930147,1707835839547,-500.0,0.00028767,2]
[313930148,1707835839558,-500.0,0.00028767,2]
[313930149,1707835839568,-500.0,0.00028767,2]
[313930150,1707835839578,-500.0,0.00028767,2]
[313930151,1707835839588,-500.0,0.00028767,2]
[313930152,1707835839598,-500.0,0.00028767,2]
[313930153,1707835839608,-500.0,0.00028767,2]
[313930154,1707835839619,-500.0,0.00028767,2]
[313930155,1707835839628,-567.75,0.00028767,2]
[313930156,1707835839637,-500.0,0.00028767,2]
[313930157,1707835839647,-206.87463486,0.00028767,2]
[313930158,1707835839657,-500.0,0.00028767,2]
[313930159,1707835839666,-500.0,0.00028767,2]
[313930160,1707835839678,-203.73179369,0.00028767,2]
[313930161,1707835839690,-500.0,0.00028767,2]
[313930162,1707835839701,-500.0,0.00028767,2]
[313930163,1707835839711,-500.0,0.00028767,2]
[313930164,1707835839720,-500.0,0.00028767,2]
[313930165,1707835839731,-500.0,0.00028767,2]
[313930166,1707835839742,-500.0,0.00028767,2]
[313930167,1707835839754,-500.0,0.00028767,2]
[313930168,1707835839765,-528.60558503,0.00028767,2]
[313930169,1707835839775,-500.0,0.00028767,2]
[313930170,1707835839785,-500.0,0.00028767,2]
[313930171,1707835839795,-500.0,0.00028767,2]
[313930172,1707835839804,-500.0,0.00028767,2]
[313930173,1707835839814,-500.0,0.00028767,2]
[313930174,1707835839825,-500.0,0.00028767,2]
[313930175,1707835839836,-500.0,0.00028767,2]
[313930176,1707835839845,-500.0,0.00028767,2]
[313930177,1707835839856,-500.0,0.00028767,2]
[313930178,1707835839867,-500.0,0.00028767,2]
[313930179,1707835839876,-601.21212862,0.00028767,2]
[313930180,1707835839887,-500.0,0.00028767,2]
[313930181,1707835839896,-500.0,0.00028767,2]
[313930182,1707835839906,-500.0,0.00028767,2]
[313930183,1707835839916,-500.0,0.00028767,2]
[313930184,1707835839927,-500.0,0.00028767,2]
[313930185,1707835839937,-500.0,0.00028767,2]
[313930186,1707835839946,-500.0,0.00028767,2]
[313930187,1707835839956,-500.0,0.00028767,2]
[313930188,1707835839965,-500.0,0.00028767,2]
[313930189,1707835839977,-572.93,0.00028767,2]
[313930190,1707835839987,-531.72763517,0.00028767,2]
[313930191,1707835839996,-616.80164549,0.00028767,2]
[313930192,1707835840006,-507.88306037,0.00028767,2]
[313930193,1707835840015,-500.0,0.00028767,2]
[313930194,1707835840024,-500.0,0.00028767,2]
[313930195,1707835840037,-500.0,0.00028767,2]
[313930196,1707835840046,-315.38,0.00028767,2]
[313930197,1707835840055,-500.0,0.00028767,2]
[313930198,1707835840065,-1023.05,0.00028767,2]
[313930199,1707835840074,-500.0,0.00028767,2]
[313930200,1707835840084,-500.0,0.00028767,2]
[313930201,1707835840093,-500.0,0.00028767,2]
[313930202,1707835840103,-500.0,0.00028767,2]
[313930203,1707835840113,-500.0,0.00028767,2]
[313930204,1707835840123,-500.0,0.00028767,2]
[313930205,1707835840133,-500.0,0.00028767,2]
[313930206,1707835840142,-500.0,0.00028767,2]
[313930207,1707835840151,-500.0,0.00028767,2]
[313930208,1707835840161,-500.0,0.00028767,2]
[313930209,1707835840170,-500.0,0.00028767,2]
[313930210,1707835840183,-500.0,0.00028767,2]
[313930211,1707835840193,-500.0,0.00028767,2]
[313930212,1707835840203,-500.0,0.00028767,2]
[313930213,1707835840213,-500.0,0.00028767,2]
[313930214,1707835840222,-500.0,0.00028767,2]
[313930215,1707835840231,-500.0,0.00028767,2]
[313930216,1707835840241,-500.0,0.00028767,2]
[313930217,1707835840251,-614.75159981,0.00028767,2]
[313930218,1707835840260,-501.09432328,0.00028767,2]
[313930219,1707835840270,-500.0,0.00028767,2]
[313930220,1707835840280,-500.0,0.00028767,2]
[313930221,1707835840291,-1651.56,0.00028767,2]
[313930222,1707835840301,-500.0,0.00028767,2]
[313930223,1707835840311,-797.24,0.00028767,2]
[313930224,1707835840321,-152.59,0.00028767,2]
[313930225,1707835840331,-500.0,0.00028767,2]
[313930226,1707835840340,-500.0,0.00028767,2]
[313930227,1707835840349,-500.0,0.00028767,2]
[313930228,1707835840359,-500.0,0.00028767,2]
[313930229,1707835840370,-500.0,0.00028767,2]
[313930230,1707835840381,-167.44914083,0.00028767,2]
[313930231,1707835840391,-517.68978414,0.00028767,2]
[313930232,1707835840401,-500.0,0.00028767,2]
[313930233,1707835840411,-500.0,0.00028767,2]
[313930234,1707835840421,-500.0,0.00028767,2]
[313930235,1707835840434,-500.0,0.00028767,2]
[313930236,1707835840443,-500.0,0.00028767,2]
[313930237,1707835840453,-500.0,0.00028767,2]
[313930238,1707835840462,-500.0,0.00028767,2]
[313930239,1707835840473,-500.0,0.00028767,2]
[313930240,1707835840484,-500.0,0.00028767,2]
[313930241,1707835840496,-500.0,0.00028767,2]
[313930242,1707835840507,-500.0,0.00028767,2]
[313930243,1707835840517,-504.29835926,0.00028767,2]
[313930244,1707835840526,-500.0,0.00028767,2]
[313930245,1707835840536,-500.0,0.00028767,2]
[313930246,1707835840546,-500.0,0.00028767,2]
[313930247,1707835840556,-500.0,0.00028767,2]
[313930248,1707835840568,-589.72654559,0.00028767,2]
[313930249,1707835840577,-500.0,0.00028767,2]
[313930250,1707835840586,-500.0,0.00028767,2]
[313930251,1707835840596,-500.0,0.00028767,2]
[313930252,1707835840605,-500.0,0.00028767,2]
[313930253,1707835840615,-500.0,0.00028767,2]
[313930254,1707835840624,-618.51,0.00028767,2]
[313930255,1707835840633,-500.0,0.00028767,2]
[313930256,1707835840643,-500.0,0.00028767,2]
[313930257,1707835840652,-3000.0,0.000288,2]
[313930258,1707835840663,-3000.0,0.0002881,2]
[313930259,1707835840676,-3000.0,0.0002882,2]
[313930261,1707835840687,-3000.0,0.0002883,2]
[313930263,1707835840698,-500.0,0.00028839,2]
[313930265,1707835840707,-500.0,0.00028839,2]
[313930267,1707835840717,-500.0,0.00028839,2]
[313930268,1707835840727,-500.0,0.00028839,2]
[313930269,1707835840737,-500.0,0.00028839,2]
[313930270,1707835840747,-500.0,0.00028839,2]
[313930271,1707835840756,-182.17588378,0.00028839,2]
[313930272,1707835840766,-500.0,0.00028839,2]
[313930273,1707835840776,-500.0,0.00028839,2]
[313930274,1707835840786,-500.0,0.00028839,2]
[313930275,1707835840796,-500.0,0.00028839,2]
[313930276,1707835840805,-500.0,0.00028839,2]
[313930277,1707835840815,-500.0,0.00028839,2]
[313930278,1707835840825,-212.77748696,0.00028839,2]
[313930279,1707835840835,-500.0,0.00028839,2]
[313930280,1707835840845,-500.0,0.00028839,2]
[313930281,1707835840854,-500.0,0.00028839,2]
[313930282,1707835840865,-500.0,0.00028839,2]
[313930283,1707835840875,-500.0,0.00028839,2]
[313930284,1707835840884,-188.7077744,0.00028839,2]
[313930285,1707835840894,-500.0,0.00028839,2]
[313930286,1707835840904,-500.0,0.00028839,2]
[313930287,1707835840914,-500.0,0.00028839,2]
[313930288,1707835840927,-500.0,0.00028839,2]
[313930289,1707835840936,-500.0,0.00028839,2]
[313930290,1707835840947,-500.0,0.00028839,2]
[313930291,1707835840957,-500.0,0.00028839,2]
[313930292,1707835840966,-500.0,0.00028839,2]
[313930293,1707835840976,-500.0,0.00028839,2]
[313930294,1707835840986,-500.0,0.00028839,2]
[313930295,1707835840996,-500.0,0.00028839,2]
[313930296,1707835841005,-500.0,0.00028839,2]
[313930297,1707835841016,-500.0,0.00028839,2]
[313930298,1707835841025,-620.11,0.00028839,2]
[313930299,1707835841035,-500.0,0.00028839,2]
[313930300,1707835841045,-171.20318724,0.00028839,2]
[313930301,1707835841054,-500.0,0.00028839,2]
[313930302,1707835841064,-500.0,0.00028839,2]
[313930303,1707835841074,-905.64,0.00028839,2]
[313930304,1707835841084,-508.9142918,0.00028839,2]
[313930305,1707835841094,-500.0,0.00028839,2]
[313930306,1707835841103,-500.0,0.00028839,2]
[313930307,1707835841116,-500.0,0.00028839,2]
[313930308,1707835841126,-500.0,0.00028839,2]
[313930309,1707835841136,-896.63,0.00028839,2]
[313930310,1707835841146,-500.0,0.00028839,2]
[313930311,1707835841155,-500.0,0.00028839,2]
[313930312,1707835841164,-500.0,0.00028839,2]
[313930313,1707835841177,-500.0,0.00028839,2]
[313930314,1707835841186,-515.06496256,0.00028839,2]
[313930315,1707835841196,-500.0,0.00028839,2]
[313930316,1707835841205,-500.0,0.00028839,2]
[313930317,1707835841215,-500.0,0.00028839,2]
[313930318,1707835841225,-500.0,0.00028839,2]
[313930319,1707835841234,-385.84486004,0.00028839,2]
[313930320,1707835841244,-635.8,0.00028839,2]
[313930321,1707835841253,-500.0,0.00028839,2]
[313930322,1707835841263,-324.48075586,0.00028839,2]
[313930323,1707835841273,-500.0,0.00028839,2]
[313930324,1707835841283,-500.0,0.00028839,2]
[313930325,1707835841292,-500.0,0.00028839,2]
[313930326,1707835841302,-500.0,0.00028839,2]
[313930327,1707835841311,-500.0,0.00028839,2]
[313930328,1707835841321,-500.0,0.00028839,2]
[313930329,1707835841330,-500.0,0.00028839,2]
[313930330,1707835841341,-500.0,0.00028839,2]
[313930331,1707835841351,-259.73761298,0.00028839,2]
[313930332,1707835841360,-500.0,0.00028839,2]
[313930333,1707835841368,-500.0,0.00028839,2]
[313930334,1707835841377,-500.0,0.00028839,2]
[313930335,1707835841387,-355.98248981,0.00028839,2]
[313930336,1707835841396,-500.0,0.00028839,2]
[313930337,1707835841407,-500.0,0.00028839,2]
[313930338,1707835841417,-3000.0,0.0002884,2]
[313930339,1707835841429,-3000.0,0.0002885,2]
[313930340,1707835841438,-3000.0,0.0002886,2]
[313930341,1707835841447,-3000.0,0.0002887,2]
[313930342,1707835841458,-3000.0,0.0002888,2]
[313930343,1707835841468,-3000.0,0.0002889,2]
[313930344,1707835841478,-500.0,0.00028895,2]
[313930345,1707835841487,-3000.0,0.000289,2]
[313930346,1707835841497,-3000.0,0.0002891,2]
[313930347,1707835841506,-5554.692474,0.0002892,2]
[313930348,1707835841516,-324.6447,0.00028941,2]
[313930349,1707835841526,-450.0,0.00029,3]
[313930350,1707835841536,-500.0,0.00029041,2]
[313930351,1707835841546,-500.0,0.00029041,2]
[313930352,1707835841556,-500.0,0.00029041,2]
[313930353,1707835841566,-500.0,0.00029041,2]
[313930354,1707835841575,-500.0,0.00029041,2]
[313930355,1707835841584,-500.0,0.00029041,2]
[313930356,1707835841595,-500.0,0.00029041,2]
[313930357,1707835841604,-500.0,0.00029041,2]
[313930358,1707835841613,-500.0,0.00029041,2]
[313930359,1707835841622,-504.2819593,0.00029041,2]
[313930360,1707835841632,-500.0,0.00029041,2]
[313930361,1707835841641,-500.0,0.00029041,2]
[313930362,1707835841650,-500.0,0.00029041,2]
[313930363,1707835841663,-500.0,0.00029041,2]
[313930364,1707835841674,-669.91,0.00029041,2]
[313930365,1707835841683,-500.0,0.00029041,2]
[313930366,1707835841694,-500.0,0.00029041,2]
[313930367,1707835841706,-500.0,0.00029041,2]
[313930368,1707835841715,-500.0,0.00029041,2]
[313930369,1707835841725,-500.0,0.00029041,2]
[313930370,1707835841736,-500.0,0.00029041,2]
[313930371,1707835841747,-500.0,0.00029041,2]
[313930372,1707835841756,-500.0,0.00029041,2]
[313930373,1707835841766,-500.0,0.00029041,2]
[313930374,1707835841775,-500.0,0.00029041,2]
[313930375,1707835841785,-500.0,0.00029041,2]
[313930376,1707835841796,-500.0,0.00029041,2]
[313930377,1707835841807,-500.0,0.00029041,2]
[313930378,1707835841819,-500.0,0.00029041,2]
[313930379,1707835841830,-500.0,0.00029041,2]
[313930380,1707835841839,-500.0,0.00029041,2]
[313930381,1707835841851,-500.0,0.00029041,2]
[313930382,1707835841861,-500.0,0.00029041,2]
[313930383,1707835841870,-500.0,0.00029041,2]
[313930384,1707835841881,-500.0,0.00029041,2]
[313930385,1707835841891,-500.0,0.00029041,2]
[313930386,1707835841902,-500.0,0.00029041,2]
[313930388,1707835841912,-500.0,0.00029041,2]
[313930390,1707835841924,-500.0,0.00029041,2]
[313930392,1707835841934,-500.0,0.00029041,2]
[313930394,1707835841943,-500.0,0.00029041,2]
[313930396,1707835841952,-500.0,0.00029041,2]
[313930398,1707835841962,-500.0,0.00029041,2]
[313930400,1707835841972,-500.0,0.00029041,2]
[313930402,1707835841981,-500.0,0.00029041,2]
[313930403,1707835841991,-500.0,0.00029041,2]
[313930404,1707835842000,-500.0,0.00029041,2]
[313930406,1707835842010,-500.0,0.00029041,2]
[313930408,1707835842020,-500.0,0.00029041,2]
[313930410,1707835842029,-500.0,0.00029041,2]
[313930412,1707835842038,-500.0,0.00029041,2]
[313930413,1707835842049,-500.0,0.00029041,2]
[313930414,1707835842059,-500.0,0.00029041,2]
[313930415,1707835842069,-500.0,0.00029041,2]
[313930416,1707835842231,-500.0,0.00029041,2]
[313930417,1707835842241,-572.93,0.00029041,2]
[313930418,1707835842250,-500.0,0.00029041,2]
[313930419,1707835842259,-620.56721398,0.00029041,2]
[313930420,1707835842268,-500.0,0.00029041,2]
[313930421,1707835842278,-1023.05,0.00029041,2]
[313930422,1707835842288,-500.0,0.00029041,2]
[313930423,1707835842297,-500.0,0.00029041,2]
[313930424,1707835842308,-500.0,0.00029041,2]
[313930425,1707835842317,-500.0,0.00029041,2]
[313930426,1707835842328,-500.0,0.00029041,2]
[313930427,1707835842337,-500.0,0.00029041,2]
[313930428,1707835842346,-500.0,0.00029041,2]
[313930429,1707835842356,-500.0,0.00029041,2]
[313930430,1707835842365,-500.0,0.00029041,2]
[313930431,1707835842374,-1651.56,0.00029041,2]
[313930432,1707835842383,-797.24,0.00029041,2]
[313930433,1707835842393,-500.0,0.00029041,2]
[313930434,1707835842402,-500.0,0.00029041,2]
[313930435,1707835842411,-500.0,0.00029041,2]
[313930436,1707835842420,-500.0,0.00029041,2]
[313930437,1707835842432,-500.0,0.00029041,2]
[313930438,1707835842442,-500.0,0.00029041,2]
[313930439,1707835842451,-524.63997923,0.00029041,2]
[313930440,1707835842461,-500.0,0.00029041,2]
[313930441,1707835842470,-500.0,0.00029041,2]
[313930442,1707835842479,-500.0,0.00029041,2]
[313930443,1707835842488,-500.0,0.00029041,2]
[313930444,1707835842498,-500.0,0.00029041,2]
[313930445,1707835842508,-500.0,0.00029041,2]
[313930446,1707835842517,-500.0,0.00029041,2]
[313930447,1707835842526,-500.0,0.00029041,2]
[313930448,1707835842536,-500.0,0.00029041,2]
[313930449,1707835842545,-500.0,0.00029041,2]
[313930450,1707835842554,-500.0,0.00029041,2]
[313930451,1707835842563,-500.0,0.00029041,2]
[313930452,1707835842573,-618.51,0.00029041,2]
[313930453,1707835842582,-500.0,0.00029041,2]
[313930454,1707835842591,-500.0,0.00029041,2]
[313930455,1707835842601,-500.0,0.00029113,2]
[313930457,1707835842610,-640.05493882,0.00029113,2]
[313930458,1707835842620,-500.0,0.00029113,2]
[313930460,1707835842629,-500.0,0.00029113,2]
[313930461,1707835842639,-424.44318239,0.00029113,2]
[313930462,1707835842648,-500.0,0.00029113,2]
[313930463,1707835842660,-500.0,0.00029113,2]
[313930464,1707835842669,-500.0,0.00029113,2]
[313930465,1707835842682,-500.0,0.00029113,2]
[313930466,1707835842693,-500.0,0.00029113,2]
[313930467,1707835842703,-500.0,0.00029113,2]
[313930469,1707835842712,-500.0,0.00029113,2]
[313930471,1707835842723,-500.0,0.00029113,2]
[313930473,1707835842732,-278.0,0.00029113,2]
[313930475,1707835842741,-500.0,0.00029113,2]
[313930476,1707835842750,-500.0,0.00029113,2]
[313930479,1707835842761,-500.0,0.00029113,2]
[313930480,1707835842770,-500.0,0.00029113,2]
[313930482,1707835842779,-500.0,0.00029113,2]
[313930484,1707835842789,-500.0,0.00029113,2]
[313930487,1707835842798,-500.0,0.00029113,2]
[313930489,1707835842807,-905.64,0.00029113,2]
[313930491,1707835842817,-500.0,0.00029113,2]
[313930492,1707835842826,-500.0,0.00029113,2]
[313930494,1707835842835,-896.63,0.00029113,2]
[313930495,1707835842845,-500.0,0.00029113,2]
[313930496,1707835842854,-500.0,0.00029113,2]
[313930497,1707835842863,-500.0,0.00029113,2]
[313930498,1707835842872,-500.0,0.00029113,2]
[313930499,1707835842882,-500.0,0.00029113,2]
[313930500,1707835842891,-500.0,0.00029113,2]
[313930502,1707835842900,-500.0,0.00029113,2]
[313930503,1707835842909,-635.8,0.00029113,2]
[313930504,1707835842918,-500.0,0.00029113,2]
[313930505,1707835842930,-500.0,0.00029113,2]
[313930506,1707835842940,-500.0,0.00029113,2]
[313930507,1707835842949,-500.0,0.00029113,2]
[313930508,1707835842958,-500.0,0.00029113,2]
[313930509,1707835842968,-500.0,0.00029113,2]
[313930510,1707835842978,-500.0,0.00029113,2]
[313930511,1707835842987,-500.0,0.00029113,2]
[313930512,1707835842996,-500.0,0.00029113,2]
[313930513,1707835843005,-500.0,0.00029113,2]
[313930514,1707835843015,-500.0,0.00029113,2]
[313930515,1707835843024,-500.0,0.00029113,2]
[313930516,1707835843033,-154.11,0.00029278,2]
[313930517,1707835843042,-500.0,0.00029315,2]
[313930518,1707835843052,-500.0,0.00029315,2]
[313930519,1707835843061,-500.0,0.00029315,2]
[313930520,1707835843071,-500.0,0.00029315,2]
[313930521,1707835843080,-500.0,0.00029315,2]
[313930523,1707835843090,-301.66506681,0.00029315,2]
[313930525,1707835843099,-500.0,0.00029315,2]
[313930526,1707835843109,-500.0,0.00029315,2]
[313930528,1707835843118,-500.0,0.00029315,2]
[313930530,1707835843127,-500.0,0.00029315,2]
[313930532,1707835843136,-500.0,0.00029315,2]
[313930534,1707835843146,-500.0,0.00029315,2]
[313930536,1707835843155,-669.91,0.00029315,2]
[313930539,1707835843164,-500.0,0.00029315,2]
[313930541,1707835843176,-500.0,0.00029315,2]
[313930543,1707835843185,-500.0,0.00029315,2]
[313930545,1707835843194,-500.0,0.00029315,2]
[313930547,1707835843203,-500.0,0.00029315,2]